bitfinex/quotes_BTCUSD_20250303
["timestamp","ask_amount","ask_price","bid_price","bid_amount"]
[1741029023196,0.3,87579.0,87567.0,0.00047178]
[1741029023420,0.228362,87580.0,87567.0,0.00047178]
[1741029023421,0.228364,87580.0,87567.0,0.00047178]
[1741029023576,0.228383,87572.0,87567.0,0.00047178]
[1741029023801,0.228393,87568.0,87567.0,0.00047178]
[1741029024016,0.528393,87568.0,87567.0,0.00047178]
[1741029024614,0.528425,87556.0,87555.0,0.000339]
[1741029024871,0.528425,87556.0,87555.0,0.00047135]
[1741029026989,0.3,87556.0,87555.0,0.00047135]
[1741029027338,0.39708918,87565.0,87555.0,0.00047135]
[1741029027674,0.0456,87604.0,87556.0,0.15496]
[1741029027675,0.39708918,87580.0,87556.0,0.15496]
[1741029027873,0.39708918,87570.0,87556.0,0.15496]
[1741029028100,0.3,87566.0,87556.0,0.15496]
[1741029028300,0.3,87569.0,87556.0,0.15496]
[1741029028503,0.39708918,87570.0,87556.0,0.15496]
[1741029028834,0.528425,87556.0,87555.0,0.00047135]
[1741029029169,0.3,87556.0,87555.0,0.00047135]
[1741029029592,0.528425,87556.0,87555.0,0.00047135]
[1741029029795,0.3,87556.0,87555.0,0.00047135]
[1741029030282,0.528425,87556.0,87555.0,0.00047135]
[1741029031783,0.3,87556.0,87555.0,0.00047135]
[1741029032091,1.187108,87604.0,87555.0,0.00047135]
[1741029032092,0.1,87593.0,87555.0,0.00047135]
[1741029032285,0.39708918,87580.0,87555.0,0.15539135]
[1741029032563,0.1,87624.0,87555.0,0.15539135]
[1741029032564,0.39708918,87590.0,87579.0,0.228365]
[1741029032732,0.39708918,87590.0,87584.0,0.228351]
[1741029032935,0.39708918,87600.0,87556.0,0.228425]
[1741029033160,0.39708918,87590.0,87555.0,0.00886928]
[1741029033360,0.39708918,87580.0,87557.0,0.15488]
[1741029033499,0.39708918,87590.0,87557.0,0.15488]
[1741029033708,0.39708918,87570.0,87557.0,0.15488]
[1741029034389,0.39708918,87570.0,87562.0,0.228408]
[1741029034508,0.62545118,87580.0,87561.0,0.228411]
[1741029034714,0.39708918,87571.0,87557.0,0.15501235]
[1741029034917,0.3,87582.0,87557.0,0.15501235]
[1741029034918,0.39708918,87580.0,87557.0,0.15501235]
[1741029035578,0.39708918,87590.0,87578.0,0.228367]
[1741029035807,0.39708918,87590.0,87557.0,0.15501235]
[1741029036021,0.39708918,87570.0,87557.0,0.15501235]
[1741029036213,0.3,87569.0,87557.0,0.15501235]
[1741029036413,0.3,87569.0,87557.0,0.38343435]
[1741029036640,0.39708918,87570.0,87557.0,0.15501235]
[1741029036981,0.39708918,87570.0,87558.0,0.228419]
[1741029037231,0.39708918,87570.0,87557.0,0.15501235]
[1741029037732,0.22842,87558.0,87557.0,0.00013235]
[1741029037935,0.35342987,87569.0,87557.0,0.00013235]
[1741029038110,0.52842,87558.0,87557.0,0.00013235]
[1741029038313,0.3,87558.0,87557.0,0.00013235]
[1741029038512,0.05342987,87569.0,87557.0,0.00013235]
[1741029038692,0.05342987,87569.0,87568.0,0.228393]
[1741029038895,0.05342987,87569.0,87557.0,0.00013235]
[1741029039101,0.05342987,87569.0,87567.0,0.228396]
[1741029039102,0.02054995,87568.0,87567.0,0.228396]
[1741029039503,0.0085021,87606.0,87605.0,0.228297]
[1741029039856,0.034345,87661.0,87625.0,0.228245]
[1741029039857,0.00870234,87647.0,87625.0,0.228245]
[1741029040047,0.39708918,87640.0,87607.0,0.0788]
[1741029040259,0.39708918,87630.0,87607.0,0.0788]
[1741029040467,0.00870234,87647.0,87588.0,0.0788]
[1741029040468,0.39708918,87620.0,87588.0,0.0788]
[1741029040615,0.39708918,87598.0,87573.0,0.0788]
[1741029040815,0.39708918,87610.0,87573.0,0.18150437]
[1741029041014,0.39103577,87610.0,87575.0,0.7]
[1741029041238,0.39708918,87600.0,87575.0,0.7]
[1741029041585,0.39708918,87600.0,87594.0,0.228323]
[1741029041714,0.39708918,87600.0,87591.0,0.228331]
[1741029041915,0.228313,87599.0,87578.0,0.15472]
[1741029042118,0.39708918,87590.0,87578.0,0.15472]
[1741029043173,0.228353,87584.0,87573.0,0.00013235]
[1741029043397,0.3,87589.0,87573.0,0.00013235]
[1741029043398,0.528378,87574.0,87573.0,0.00013235]
[1741029043608,0.3,87574.0,87573.0,0.00013235]
[1741029043826,0.528378,87574.0,87573.0,0.00013235]
[1741029045322,0.39708918,87590.0,87573.0,0.00013235]
[1741029045888,0.39708918,87590.0,87573.0,0.22851035]
[1741029046068,0.52847418,87600.0,87589.0,0.228339]
[1741029046255,0.75678518,87600.0,87582.0,0.228355]
[1741029046452,0.22833,87593.0,87573.0,0.00013235]
[1741029046651,0.52847418,87600.0,87573.0,0.00013235]
[1741029046652,0.39708918,87586.0,87573.0,0.00013235]
[1741029046913,0.39708918,87586.0,87579.0,0.228363]
[1741029047115,0.39708918,87586.0,87581.0,0.228359]
[1741029047339,0.39708918,87586.0,87573.0,0.00013235]
[1741029048129,0.39708918,87586.0,87585.0,0.228349]
[1741029048323,0.39708918,87586.0,87579.0,0.228363]
[1741029048530,0.39708918,87586.0,87573.0,0.00013235]
[1741029048946,0.228355,87583.0,87573.0,0.00013235]
[1741029049349,0.228357,87582.0,87573.0,0.00013235]
[1741029049729,0.228371,87577.0,87573.0,0.00013235]
[1741029049928,0.528355,87583.0,87573.0,0.00013235]
[1741029050129,0.39708918,87586.0,87573.0,0.00013235]
[1741029050516,0.3,87583.0,87573.0,0.00013235]
[1741029050724,0.3,87585.0,87573.0,0.00013235]
[1741029050725,0.528378,87574.0,87573.0,0.00013235]
[1741029050929,0.528378,87574.0,87573.0,3.5e-07]
[1741029051140,0.1,87583.0,87555.0,0.000339]
[1741029051141,0.528425,87556.0,87555.0,0.000339]
[1741029051501,0.528425,87556.0,87555.0,0.00047095]
[1741029051909,0.54914414,87556.0,87555.0,0.00047095]
[1741029052713,0.5663526,87556.0,87555.0,0.00047095]
[1741029053138,0.32071914,87556.0,87555.0,0.00047095]
[1741029053342,0.02071914,87556.0,87555.0,0.22889795]
[1741029053727,1.4e-07,87556.0,87555.0,0.24595298]
[1741029054103,0.0464,87615.0,87555.0,0.24595298]
[1741029054104,0.39708918,87590.0,87556.0,0.0793]
[1741029054452,0.39708918,87590.0,87583.0,0.228354]
[1741029054667,0.39708918,87590.0,87582.0,0.228356]
[1741029054869,0.39708918,87590.0,87568.0,0.228392]
[1741029055133,0.39708918,87580.0,87557.0,0.15456]
[1741029055287,0.39708918,87570.0,87557.0,0.15456]
[1741029055487,0.39708918,87570.0,87555.0,0.000339]
[1741029055739,0.528393,87569.0,87555.0,0.00047095]
[1741029055953,0.228416,87560.0,87555.0,0.00047095]
[1741029056103,0.39708918,87570.0,87555.0,0.00047095]
[1741029056308,0.39708918,87570.0,87557.0,0.228422]
[1741029056508,0.39708918,87580.0,87556.0,0.228425]
[1741029056709,0.39708918,87570.0,87555.0,0.00047095]
[1741029056934,0.39708918,87580.0,87555.0,0.00047095]
[1741029057291,0.0001704,87586.0,87585.0,0.228349]
[1741029058236,0.0001704,87586.0,87581.0,0.228357]
[1741029058453,0.0001704,87586.0,87585.0,0.228349]
[1741029058649,0.0001704,87586.0,87585.0,0.00013195]
[1741029059265,0.0001704,87586.0,87585.0,0.22848095]
[1741029060472,0.0001704,87586.0,87585.0,0.00013195]
[1741029060684,0.2285164,87586.0,87585.0,0.00013195]
[1741029060832,0.5285164,87586.0,87585.0,0.00013195]
[1741029061040,0.3001704,87586.0,87585.0,0.00013195]
[1741029061216,0.0001704,87586.0,87585.0,0.22848095]
[1741029061435,4e-07,87600.0,87585.0,0.38313195]
[1741029061637,0.01756366,87639.0,87611.0,0.1]
[1741029061839,0.2283047,87668.0,87611.0,0.1]
[1741029061840,3e-07,87626.0,87625.0,0.611245]
[1741029062069,3e-07,87626.0,87625.0,0.765685]
[1741029062424,0.06221951,87637.0,87636.0,0.528216]
[1741029062425,8.1e-07,87637.0,87636.0,0.528216]
[1741029062673,8.1e-07,87637.0,87636.0,0.00859559]
[1741029062872,8.1e-07,87637.0,87620.0,0.1544]
[1741029063083,0.09863678,87654.0,87612.0,0.7]
[1741029063084,0.39708918,87630.0,87612.0,0.7]
[1741029063283,0.528184,87649.0,87612.0,0.7]
[1741029063488,0.39748925,87650.0,87613.0,0.228276]
[1741029063699,0.00040007,87650.0,87649.0,0.228182]
[1741029063959,0.09863678,87654.0,87649.0,0.228182]
[1741029063960,8.5e-07,87654.0,87653.0,0.528172]
[1741029064531,8.5e-07,87654.0,87653.0,0.62830395]
[1741029064739,8.5e-07,87654.0,87653.0,0.00013195]
[1741029065239,8.5e-07,87654.0,87653.0,0.92830395]
[1741029065781,0.0001699,87674.0,87659.0,0.228154]
[1741029065921,0.0001699,87674.0,87653.0,0.70013195]
[1741029065922,0.39708918,87670.0,87653.0,0.22830295]
[1741029066266,0.00216611,87674.0,87653.0,0.00013195]
[1741029066267,0.0001699,87674.0,87653.0,0.00013195]
[1741029066481,0.0001699,87674.0,87667.0,0.228136]
[1741029066859,0.0001699,87674.0,87658.0,0.0783]
[1741029067047,0.0001699,87674.0,87653.0,0.00013195]
[1741029067254,0.228169,87654.0,87653.0,0.00013195]
[1741029067428,0.528169,87654.0,87653.0,0.00013195]
[1741029068057,0.3,87654.0,87653.0,0.00013195]
[1741029068361,0.528169,87654.0,87653.0,9.5e-07]
[1741029069424,0.528169,87654.0,87614.0,0.15428]
[1741029069425,0.228265,87618.0,87614.0,0.15428]
[1741029069716,0.228271,87615.0,87614.0,0.00040007]
[1741029069922,0.528271,87615.0,87614.0,0.00040007]
[1741029071073,0.3,87615.0,87614.0,0.00040007]
[1741029071346,0.528271,87615.0,87614.0,0.00040007]
[1741029071791,0.00875821,87640.0,87614.0,0.00040007]
[1741029072007,0.228213,87638.0,87614.0,0.00040007]
[1741029072185,0.00875821,87640.0,87614.0,0.00040007]
[1741029072388,0.228213,87638.0,87618.0,0.228263]
[1741029072593,0.228246,87625.0,87614.0,0.00040007]
[1741029072785,0.39708918,87630.0,87614.0,0.00040007]
[1741029073084,0.228271,87615.0,87614.0,0.00040007]
[1741029073516,0.528271,87615.0,87614.0,0.00040007]
[1741029073725,0.527271,87615.0,87614.0,7e-08]
[1741029074000,0.3,87615.0,87614.0,7e-08]
[1741029074216,0.1542,87682.0,87614.0,7e-08]
[1741029074217,0.3,87618.0,87614.0,7e-08]
[1741029074420,0.228271,87615.0,87614.0,7e-08]
[1741029074835,0.228378,87574.0,87573.0,0.0003406]
[1741029075061,0.228378,87574.0,87573.0,0.00047284]
[1741029075266,0.528378,87574.0,87573.0,0.00047284]
[1741029075967,0.58217731,87574.0,87573.0,0.00047284]
[1741029076327,0.58217731,87574.0,87537.0,0.154459]
[1741029076328,0.528425,87556.0,87537.0,0.000339]
[1741029076532,0.528425,87556.0,87555.0,0.00047096]
[1741029076963,0.54911704,87556.0,87555.0,0.00047096]
[1741029077325,0.54911704,87556.0,87555.0,9.6e-07]
[1741029077524,0.64911704,87556.0,87555.0,9.6e-07]
[1741029077966,0.528472,87538.0,87537.0,1e-06]
[1741029078167,0.528472,87538.0,87537.0,0.00013259]
[1741029078611,0.528472,87538.0,87537.0,5.9e-07]
[1741029078612,0.58217849,87538.0,87537.0,5.9e-07]
[1741029079086,0.58217849,87538.0,87526.0,0.0003394]
[1741029079087,0.3,87526.0,87522.0,9.9e-07]
[1741029079265,0.528524,87518.0,87517.0,5.5e-07]
[1741029079562,0.37860859,87518.0,87517.0,0.00013246]
[1741029079922,0.44885671,87518.0,87517.0,0.00013246]
[1741029080349,0.45749488,87518.0,87517.0,0.00013246]
[1741029080727,0.44885671,87518.0,87517.0,0.00013246]
[1741029080931,0.59505671,87518.0,87517.0,4.6e-07]
[1741029081277,0.228608,87486.0,87479.0,0.0003394]
[1741029081507,0.228608,87486.0,87485.0,0.00073801]
[1741029081712,0.47684802,87497.0,87485.0,0.00073801]
[1741029081713,0.228598,87490.0,87485.0,0.00073801]
[1741029081905,0.47684802,87500.0,87485.0,0.00073801]
[1741029082091,0.228608,87486.0,87485.0,0.00073801]
[1741029082685,0.228608,87486.0,87482.0,1e-08]
[1741029082686,0.528615,87483.0,87482.0,1e-08]
[1741029082895,0.528615,87483.0,87482.0,0.00013204]
[1741029083300,0.528615,87483.0,87482.0,4e-08]
[1741029083511,0.528623,87480.0,87479.0,4e-07]
[1741029083679,0.3,87467.0,87465.0,1e-06]
[1741029083882,0.528707,87448.0,87447.0,0.0055]
[1741029084357,0.58241349,87448.0,87447.0,0.00563195]
[1741029084485,0.61364954,87448.0,87447.0,0.00563195]
[1741029084685,0.61364954,87448.0,87447.0,9.5e-07]
[1741029084912,0.528759,87428.0,87427.0,1.5e-07]
[1741029085084,0.55999505,87428.0,87427.0,5.08e-05]
[1741029085288,0.544704,87428.0,87427.0,5.08e-05]
[1741029085705,0.65313494,87428.0,87427.0,8e-07]
[1741029085907,0.544704,87428.0,87427.0,8e-07]
[1741029086113,0.228819,87405.0,87397.0,0.0003398]
[1741029086316,0.3,87405.0,87404.0,0.00018914]
[1741029086515,0.47684802,87414.0,87404.0,0.00018914]
[1741029086731,0.00200227,87413.0,87412.0,0.228801]
[1741029086944,0.06805839,87405.0,87404.0,0.22901114]
[1741029087715,0.04040966,87405.0,87404.0,0.22901114]
[1741029087898,0.06114587,87436.0,87435.0,0.228741]
[1741029088447,0.47684802,87445.0,87427.0,0.0001705]
[1741029088646,0.03250754,87459.0,87458.0,0.228681]
[1741029089056,0.03250754,87459.0,87458.0,0.22880014]
[1741029089417,0.26118554,87459.0,87458.0,0.00011914]
[1741029089571,0.03250754,87459.0,87458.0,0.00011914]
[1741029089972,0.09937485,87467.0,87466.0,0.22866]
[1741029090804,0.00549,87500.0,87499.0,0.228574]
[1741029091573,0.00549,87500.0,87497.0,0.15424]
[1741029091793,0.00549,87500.0,87474.0,0.0765]
[1741029092054,0.00588993,87500.0,87476.0,0.15424]
[1741029092395,0.00200005,87499.0,87476.0,0.15424]
[1741029092593,0.00588993,87500.0,87476.0,0.15424]
[1741029092937,0.3,87498.0,87476.0,0.15424]
[1741029093171,0.228629,87478.0,87476.0,0.15424]
[1741029093371,0.00588993,87500.0,87476.0,0.15424]
[1741029093372,0.3,87496.0,87476.0,0.15424]
[1741029093720,0.3,87509.0,87476.0,0.15424]
[1741029093919,0.3,87509.0,87476.0,0.15463993]
[1741029094150,0.3,87498.0,87476.0,0.15463993]
[1741029094354,0.234015,87518.0,87476.0,0.15463993]
[1741029094530,0.228544,87511.0,87476.0,0.15463993]
[1741029094743,0.00549,87518.0,87476.0,0.15463993]
[1741029094991,0.00549,87518.0,87478.0,0.1]
[1741029095195,0.00549,87518.0,87484.0,0.1]
[1741029095390,0.00549,87518.0,87480.0,0.1]
[1741029095566,0.00549,87518.0,87487.0,0.1]
[1741029095767,0.00549,87518.0,87517.0,0.228527]
[1741029096101,0.00549,87518.0,87517.0,0.382727]
[1741029096300,0.00549,87518.0,87517.0,0.1542]
[1741029096717,0.228547,87510.0,87503.0,0.1542]
[1741029096944,0.00549,87518.0,87503.0,0.1542]
[1741029097220,0.534014,87518.0,87517.0,0.00011914]
[1741029098310,0.75043521,87518.0,87517.0,1.4e-07]
[1741029098515,0.3,87490.0,87450.0,0.1542]
[1741029098676,0.00200062,87489.0,87450.0,0.15459993]
[1741029098873,0.228649,87470.0,87450.0,0.15459993]
[1741029099080,0.0476,87502.0,87450.0,0.15459993]
[1741029099274,0.228626,87480.0,87450.0,0.15459993]
[1741029099481,0.3,87484.0,87450.0,0.15459993]
[1741029099684,0.22864,87474.0,87450.0,0.00039993]
[1741029099897,0.23061568,87483.0,87452.0,0.228695]
[1741029099898,0.3,87482.0,87452.0,0.228695]
[1741029100103,0.00200068,87481.0,87450.0,0.00039993]
[1741029100303,0.228682,87458.0,87450.0,0.00039993]
[1741029100522,0.3,87468.0,87450.0,0.00039993]
[1741029100948,0.3,87466.0,87450.0,0.00039993]
[1741029101230,0.3,87459.0,87450.0,0.00039993]
[1741029101478,0.3,87461.0,87450.0,0.00039993]
[1741029101677,0.0086868,87492.0,87458.0,0.22868]
[1741029101874,0.0086868,87492.0,87450.0,0.00039993]
[1741029101875,0.228633,87477.0,87450.0,0.00039993]
[1741029102051,0.47718922,87510.0,87450.0,0.00039993]
[1741029102052,0.228608,87486.0,87461.0,0.228672]
[1741029102391,0.0003412,87510.0,87457.0,0.2]
[1741029102596,0.0003412,87510.0,87463.0,0.2]
[1741029102749,0.0003412,87510.0,87509.0,0.228547]
[1741029102935,0.0003412,87510.0,87500.0,0.1542]
[1741029103344,0.0003412,87510.0,87509.0,0.228547]
[1741029103545,0.0003412,87510.0,87503.0,0.0819]
[1741029103746,0.0003412,87510.0,87500.0,0.1542]
[1741029103952,0.228568,87501.0,87500.0,0.1542]
[1741029104370,0.228568,87501.0,87500.0,0.00015127]
[1741029104566,0.528568,87501.0,87500.0,0.00015127]
[1741029104867,0.3,87501.0,87500.0,0.00015127]
[1741029105085,0.528568,87501.0,87500.0,0.00015127]
[1741029105910,0.528568,87501.0,87500.0,2.7e-07]
[1741029106474,0.228568,87501.0,87500.0,2.7e-07]
[1741029110798,0.1,87523.0,87500.0,2.7e-07]
[1741029110799,0.0003412,87510.0,87500.0,2.7e-07]
[1741029111001,0.228551,87508.0,87500.0,2.7e-07]
[1741029111321,0.0003412,87510.0,87500.0,2.7e-07]
[1741029111718,0.228568,87501.0,87500.0,2.7e-07]
[1741029112366,0.528568,87501.0,87500.0,2.7e-07]
[1741029113289,0.5289078,87501.0,87500.0,2.7e-07]
[1741029114691,0.2289078,87501.0,87500.0,2.7e-07]
[1741029115057,0.0003398,87501.0,87500.0,0.22857127]
[1741029115259,0.0003398,87501.0,87500.0,2.7e-07]
[1741029115462,0.0003398,87501.0,87500.0,0.22857127]
[1741029115665,0.0003398,87501.0,87500.0,0.68273127]
[1741029115975,0.0003412,87510.0,87509.0,0.528547]
[1741029116388,0.0003412,87510.0,87509.0,0.3]
[1741029116562,0.0003412,87510.0,87509.0,0.528547]
[1741029116744,0.0003412,87510.0,87509.0,0.3]
[1741029116947,0.0003412,87510.0,87500.0,0.22433919]
[1741029117146,0.0003412,87510.0,87501.0,0.15416]
[1741029117349,0.228568,87501.0,87500.0,0.02127919]
[1741029117551,0.0003412,87510.0,87500.0,2.7e-07]
[1741029117778,0.228558,87505.0,87500.0,2.7e-07]
[1741029117959,0.228547,87509.0,87500.0,2.7e-07]
[1741029118158,0.228566,87502.0,87500.0,2.7e-07]
[1741029118359,0.0003412,87510.0,87500.0,2.7e-07]
[1741029118564,0.228568,87501.0,87500.0,2.7e-07]
[1741029118764,0.228547,87509.0,87500.0,2.7e-07]
[1741029118964,0.228568,87501.0,87500.0,2.7e-07]
[1741029120811,0.0003412,87510.0,87500.0,2.7e-07]
[1741029121225,0.0003412,87510.0,87509.0,0.228547]
[1741029121425,0.0003412,87510.0,87506.0,0.228555]
[1741029121624,0.0003412,87510.0,87502.0,0.3]
[1741029121829,0.0003412,87510.0,87505.0,0.228557]
[1741029122006,0.0003412,87510.0,87508.0,0.228549]
[1741029122208,0.0003412,87510.0,87509.0,0.228547]
[1741029122423,0.0003412,87510.0,87509.0,0.528547]
[1741029122670,0.00549,87553.0,87509.0,0.528547]
[1741029122671,0.00549,87553.0,87534.0,0.528482]
[1741029122876,0.00549,87553.0,87552.0,0.228435]
[1741029123078,0.00549,87553.0,87552.0,0.528435]
[1741029123563,1e-06,87553.0,87552.0,0.528435]
[1741029123728,1e-06,87553.0,87552.0,0.628435]
[1741029123934,0.00549,87570.0,87556.0,0.4]
[1741029124156,0.00549,87570.0,87569.0,0.528391]
[1741029124403,0.09794547,87577.0,87576.0,0.528373]
[1741029124607,0.0003402,87589.0,87584.0,0.628352]
[1741029124736,0.0003402,87589.0,87584.0,0.528352]
[1741029124943,0.0003402,87589.0,87575.0,0.39904688]
[1741029124944,0.0003402,87589.0,87580.0,0.00869177]
[1741029125149,0.0003402,87589.0,87584.0,0.228352]
[1741029125721,0.0003402,87589.0,87584.0,0.02133055]
[1741029125894,8e-08,87589.0,87584.0,0.43120255]
[1741029126104,0.00034,87641.0,87609.0,0.1]
[1741029126305,0.00056551,87637.0,87636.0,0.228216]
[1741029126512,0.00056551,87637.0,87636.0,0.528216]
[1741029126709,0.00056551,87637.0,87631.0,0.15408]
[1741029126960,0.00056551,87637.0,87631.0,0.11542123]
[1741029127164,0.00056551,87637.0,87636.0,0.228216]
[1741029127366,0.00056551,87637.0,87636.0,0.528216]
[1741029127717,0.00056551,87637.0,87636.0,0.3]
[1741029127896,0.00056551,87637.0,87635.0,0.02133055]
[1741029128101,0.228216,87636.0,87635.0,0.02102273]
[1741029128516,0.22877951,87637.0,87635.0,0.02102273]
[1741029128517,0.00056551,87637.0,87635.0,0.02102273]
[1741029128720,0.228216,87636.0,87635.0,0.02102273]
[1741029128919,0.00056551,87637.0,87608.0,0.154]
[1741029129142,0.00056551,87637.0,87594.0,0.18144]
[1741029129143,0.00199693,87636.0,87594.0,0.202463]
[1741029129342,0.39904688,87630.0,87594.0,0.202463]
[1741029129521,0.228228,87632.0,87594.0,0.18144]
[1741029129726,0.00056551,87637.0,87601.0,0.1]
[1741029129907,0.00056551,87637.0,87594.0,0.29289029]
[1741029129908,0.00056551,87637.0,87636.0,0.528216]
[1741029130522,0.00056551,87637.0,87635.0,0.00846574]
[1741029130833,0.00056551,87637.0,87633.0,0.154]
[1741029131030,0.00056551,87637.0,87636.0,0.228216]
[1741029132094,0.00056551,87637.0,87633.0,0.154]
[1741029132291,0.00056551,87637.0,87625.0,0.0814]
[1741029132493,0.00056551,87637.0,87605.0,0.047]
[1741029132494,0.00056551,87637.0,87607.0,0.23096]
[1741029132758,0.228232,87631.0,87615.0,0.228269]
[1741029132966,0.00056551,87637.0,87603.0,0.15396]
[1741029133172,0.00056551,87637.0,87636.0,0.228216]
[1741029133885,0.00056551,87637.0,87632.0,0.3]
[1741029134101,0.00056551,87637.0,87636.0,0.228216]
[1741029134292,0.00056551,87637.0,87636.0,0.528216]
[1741029134618,0.00056551,87637.0,87636.0,0.605416]
[1741029134953,0.00056551,87637.0,87636.0,0.70812037]
[1741029135176,0.0019963,87689.0,87636.0,0.70812037]
[1741029135177,0.0001696,87714.0,87667.0,0.228136]
[1741029135354,0.39904688,87710.0,87667.0,0.228136]
[1741029135552,0.00028831,87668.0,87667.0,0.528136]
[1741029135753,0.00028831,87668.0,87667.0,0.3]
[1741029135989,0.00028831,87668.0,87665.0,0.15392]
[1741029136325,0.228142,87665.0,87644.0,0.228195]
[1741029136534,0.228146,87664.0,87638.0,0.01515133]
[1741029136738,0.47854688,87690.0,87631.0,0.228227]
[1741029136984,0.0484,87678.0,87626.0,0.01549661]
[1741029137171,0.00199669,87677.0,87631.0,0.00011861]
[1741029137376,0.00199669,87677.0,87633.0,0.228222]
[1741029137521,0.00199669,87677.0,87631.0,0.00011861]
[1741029137522,0.228167,87655.0,87635.0,0.228218]
[1741029137724,0.228182,87649.0,87631.0,0.00011861]
[1741029137926,0.0484,87678.0,87631.0,0.00011861]
[1741029138125,0.0019966,87677.0,87631.0,0.00011861]
[1741029138354,0.228195,87645.0,87631.0,0.00011861]
[1741029138594,0.39904688,87660.0,87631.0,0.00011861]
[1741029138809,0.0001697,87637.0,87631.0,0.00011861]
[1741029139214,0.228227,87632.0,87631.0,0.00011861]
[1741029139632,0.228227,87632.0,87631.0,6.1e-07]
[1741029140029,0.528227,87632.0,87631.0,6.1e-07]
[1741029140255,0.528227,87632.0,87588.0,0.7]
[1741029140256,0.228339,87589.0,87588.0,0.7]
[1741029140459,0.3,87617.0,87575.0,0.228374]
[1741029140635,0.228341,87588.0,87559.0,0.18969795]
[1741029140854,0.228341,87588.0,87559.0,0.18132]
[1741029140976,0.1,87613.0,87559.0,0.18132]
[1741029140977,0.39904688,87620.0,87559.0,0.18132]
[1741029141178,0.228341,87588.0,87569.0,0.22839]
[1741029141381,0.228341,87588.0,87559.0,0.18132]
[1741029141831,0.54345792,87588.0,87587.0,1.1e-07]
[1741029143004,0.528341,87588.0,87587.0,1.1e-07]
[1741029143297,0.628341,87588.0,87587.0,1.1e-07]
[1741029143492,0.74373738,87588.0,87587.0,1.1e-07]
[1741029143860,0.1,87579.0,87520.0,0.306317]
[1741029144223,0.3,87569.0,87522.0,0.228512]
[1741029144355,0.3,87569.0,87520.0,0.00011818]
[1741029144356,0.39904688,87560.0,87520.0,0.00011818]
[1741029144560,0.228516,87521.0,87520.0,0.00011818]
[1741029144766,0.3,87549.0,87520.0,0.00011818]
[1741029144968,0.00199942,87548.0,87520.0,0.00011818]
[1741029145281,0.228458,87544.0,87520.0,0.00011818]
[1741029145481,0.0085135,87568.0,87520.0,0.00011818]
[1741029145686,0.39904688,87570.0,87520.0,0.00011818]
[1741029145687,0.00199902,87567.0,87520.0,0.00011818]
[1741029145888,0.228461,87543.0,87521.0,0.3]
[1741029146090,0.228504,87526.0,87520.0,0.00011818]
[1741029146292,0.1,87569.0,87520.0,0.00011818]
[1741029146293,0.39904688,87550.0,87520.0,0.00011818]
[1741029146503,0.00199942,87549.0,87520.0,0.00011818]
[1741029146933,0.00199953,87549.0,87520.0,0.00011818]
[1741029147293,0.228485,87533.0,87520.0,0.00011818]
[1741029147627,0.228453,87546.0,87534.0,0.228481]
[1741029147820,0.39904688,87570.0,87530.0,0.228492]
[1741029148169,0.39904688,87560.0,87522.0,0.3]
[1741029148388,0.00199923,87559.0,87520.0,0.00011818]
[1741029148757,0.00199916,87568.0,87520.0,0.00011818]
[1741029148989,0.00199916,87568.0,87521.0,0.3]
[1741029149105,0.01561967,87588.0,87522.0,0.3832]
[1741029149303,0.00199861,87580.0,87541.0,0.228464]
[1741029149504,0.00199864,87587.0,87542.0,0.15396]
[1741029149743,0.228434,87553.0,87542.0,0.382419]
[1741029149939,0.3,87579.0,87522.0,0.23716]
[1741029150178,0.39904688,87560.0,87522.0,0.23716]
[1741029150375,0.00199906,87559.0,87522.0,0.15396]
[1741029150576,0.228509,87524.0,87522.0,0.15396]
[1741029150776,0.228511,87523.0,87522.0,0.15396]
[1741029151057,0.228513,87522.0,87521.0,0.0003388]
[1741029151672,0.456843,87558.0,87521.0,0.0003388]
[1741029151883,0.39904688,87560.0,87521.0,0.0003388]
[1741029151884,0.228513,87522.0,87521.0,0.0003388]
[1741029152381,0.228516,87521.0,87520.0,9.8e-07]
[1741029153200,0.228513,87522.0,87520.0,9.8e-07]
[1741029153436,0.228516,87521.0,87520.0,9.8e-07]
[1741029154694,0.22848,87535.0,87520.0,9.8e-07]
[1741029154922,0.01499306,87541.0,87520.0,9.8e-07]
[1741029155091,0.39904688,87550.0,87520.0,9.8e-07]
[1741029155092,0.0019994,87540.0,87520.0,9.8e-07]
[1741029155294,0.228472,87538.0,87520.0,9.8e-07]
[1741029155502,0.00199922,87537.0,87520.0,9.8e-07]
[1741029155701,0.01493495,87541.0,87520.0,9.8e-07]
[1741029155702,0.228516,87521.0,87520.0,9.8e-07]
[1741029156805,0.528516,87521.0,87520.0,9.8e-07]
[1741029158657,0.228568,87501.0,87500.0,0.0058394]
[1741029158863,0.228568,87501.0,87500.0,0.00595855]
[1741029159900,0.24360808,87501.0,87500.0,0.00595855]
[1741029160308,0.228568,87501.0,87500.0,0.00595855]
[1741029160551,0.0452,87547.0,87500.0,0.00595855]
[1741029160755,0.00199969,87546.0,87500.0,0.00595855]
[1741029160996,0.00199969,87546.0,87501.0,0.0752]
[1741029161198,0.39904688,87530.0,87500.0,0.00595855]
[1741029161522,0.0499,87567.0,87500.0,0.00595855]
[1741029161523,0.228568,87501.0,87500.0,0.00595855]
[1741029161837,0.24372281,87501.0,87500.0,0.00595855]
[1741029162034,0.228568,87501.0,87500.0,0.00595855]
[1741029162759,0.1,87545.0,87500.0,0.00595855]
[1741029162986,0.228552,87508.0,87500.0,0.00595855]
[1741029163184,0.39904688,87540.0,87500.0,0.00595855]
[1741029163401,0.0712901,87548.0,87500.0,0.00595855]
[1741029163725,0.228526,87518.0,87509.0,0.228546]
[1741029163967,0.39904688,87540.0,87500.0,0.00595855]
[1741029164175,0.01519458,87548.0,87500.0,0.00595855]
[1741029164362,0.228485,87533.0,87519.0,0.228521]
[1741029164550,0.228485,87533.0,87501.0,0.3]
[1741029164551,0.228494,87530.0,87522.0,0.228513]
[1741029164709,0.077,87584.0,87520.0,0.3]
[1741029164917,0.228468,87540.0,87531.0,0.228489]
[1741029165109,0.342627,87559.0,87520.0,0.3]
[1741029165312,0.00199905,87558.0,87535.0,0.228478]
[1741029165526,0.01554336,87584.0,87520.0,0.3]
[1741029165720,0.39904688,87570.0,87519.0,0.15408]
[1741029165921,0.00199889,87569.0,87534.0,0.3]
[1741029166146,0.00199889,87569.0,87519.0,0.15408]
[1741029166352,0.228399,87566.0,87559.0,0.228415]